fUSD/lending_fUSD_20250617
["ID","MTS","AMOUNT","RATE_DAILY","PERIOD"]
[366285822,1750174252749,-1121.0,0.00016438,2]
[366285824,1750174252761,-490.0,0.00016438,2]
[366285826,1750174252774,-490.0,0.00016438,2]
[366285827,1750174252785,-4894.31,0.00016438,2]
[366285829,1750174252795,-2261.29,0.00016438,2]
[366285831,1750174252806,-490.0,0.00016438,2]
[366285833,1750174252816,-3775.94,0.00016438,2]
[366285835,1750174252827,-490.0,0.00016438,2]
[366285838,1750174252842,-490.0,0.00016438,2]
[366285840,1750174252854,-419.23747673,0.00016438,2]
[366285842,1750174252866,-490.0,0.00016438,2]
[366285844,1750174252876,-158.21345865,0.00016438,2]
[366285846,1750174252886,-490.0,0.00016438,2]
[366285848,1750174252896,-490.0,0.00016438,2]
[366285850,1750174252906,-872.52,0.00016438,2]
[366285852,1750174252917,-500.0,0.00016438,2]
[366285854,1750174252933,-490.0,0.00016438,2]
[366285856,1750174252945,-490.0,0.00016438,2]
[366285858,1750174252956,-490.0,0.00016438,2]
[366285860,1750174252967,-490.0,0.00016438,2]
[366285862,1750174252979,-151.0,0.00016438,2]
[366285864,1750174252990,-490.0,0.00016438,2]
[366285866,1750174253001,-490.0,0.00016438,2]
[366285868,1750174253011,-490.0,0.00016438,2]
[366285870,1750174253022,-490.0,0.00016438,2]
[366285872,1750174253032,-490.0,0.00016438,2]
[366285874,1750174253042,-155.31652,0.00016438,2]
[366285875,1750174253052,-490.0,0.00016438,2]
[366285876,1750174253062,-490.0,0.00016438,2]
[366285877,1750174253073,-490.0,0.00016438,2]
[366285878,1750174253083,-490.0,0.00016438,2]
[366285879,1750174253093,-785.09,0.00016438,2]
[366285880,1750174253103,-490.0,0.00016438,2]
[366285881,1750174253112,-490.0,0.00016438,2]
[366285882,1750174253122,-490.0,0.00016438,2]
[366285883,1750174253131,-1058.63,0.00016438,2]
[366285884,1750174253140,-490.0,0.00016438,2]
[366285885,1750174253150,-490.0,0.00016438,2]
[366285886,1750174253160,-427.87760257,0.00016438,2]
[366285887,1750174253169,-490.0,0.00016438,2]
[366285889,1750174253185,-1433.51,0.00016438,2]
[366285891,1750174253195,-609.43744556,0.00016438,2]
[366285893,1750174253205,-2998.82,0.00016438,2]
[366285895,1750174253215,-490.0,0.00016438,2]
[366285897,1750174253228,-490.0,0.00016438,2]
[366285899,1750174253239,-490.0,0.00016438,2]
[366285901,1750174253250,-612.33930821,0.00016438,2]
[366285903,1750174253261,-490.0,0.00016438,2]
[366285905,1750174253271,-490.0,0.00016438,2]
[366285907,1750174253281,-280.01458761,0.00016438,2]
[366285909,1750174253291,-490.0,0.00016438,2]
[366285911,1750174253301,-490.0,0.00016438,2]
[366285913,1750174253310,-463.62669236,0.00016438,2]
[366286031,1750174254453,-942.12330764,0.00016438,2]
[366286033,1750174254463,-490.0,0.00016438,2]
[366286035,1750174254473,-431.5191036,0.00016438,2]
[366286037,1750174254483,-490.0,0.00016438,2]
[366286039,1750174254494,-377.81419911,0.00016438,2]
[366286042,1750174254506,-112.18580089,0.00016438,2]
[366286044,1750174254522,-4639.54,0.00016438,2]
[366286046,1750174254532,-490.0,0.00016438,2]
[366286048,1750174254543,-490.0,0.00016438,2]
[366286050,1750174254554,-490.0,0.00016438,2]
[366286052,1750174254564,-1605.36,0.00016438,2]
[366286055,1750174254574,-490.0,0.00016438,2]
[366286057,1750174254585,-490.0,0.00016438,2]
[366286059,1750174254596,-490.0,0.00016438,2]
[366286061,1750174254606,-490.0,0.00016438,2]
[366286063,1750174254617,-490.0,0.00016438,2]
[366286065,1750174254628,-490.0,0.00016438,2]
[366286067,1750174254638,-1667.32,0.00016438,2]
[366286069,1750174254648,-240.6947752,0.00016438,2]
[366286071,1750174254660,-249.3052248,0.00016438,2]
[366286073,1750174254671,-260.5437752,0.00016438,2]
[366286076,1750174254689,-229.4562248,0.00016438,2]
[366286078,1750174254700,-619.53,0.00016438,2]
[366286080,1750174254712,-490.0,0.00016438,2]
[366286082,1750174254722,-5585.34,0.00016438,2]
[366286084,1750174254733,-490.0,0.00016438,2]
[366286086,1750174254743,-490.0,0.00016438,2]
[366286088,1750174254753,-490.0,0.00016438,2]
[366286090,1750174254763,-514.48,0.00016438,2]
[366286092,1750174254773,-514.48,0.00016438,2]
[366286094,1750174254784,-514.48,0.00016438,2]
[366286096,1750174254795,-490.0,0.00016438,2]
[366286098,1750174254805,-514.48,0.00016438,2]
[366286100,1750174254816,-490.0,0.00016438,2]
[366286102,1750174254827,-514.48,0.00016438,2]
[366286104,1750174254837,-460.69727158,0.00016438,2]
[366286106,1750174254847,-514.48,0.00016438,2]
[366286109,1750174254857,-514.48,0.00016438,2]
[366286110,1750174254867,-514.48,0.00016438,2]
[366286111,1750174254877,-490.0,0.00016438,2]
[366286113,1750174254888,-514.48,0.00016438,2]
[366286115,1750174254898,-490.0,0.00016438,2]
[366286117,1750174254909,-1198.1,0.00016438,2]
[366286119,1750174254919,-514.48,0.00016438,2]
[366286121,1750174254934,-514.48,0.00016438,2]
[366286123,1750174254945,-514.48,0.00016438,2]
[366286125,1750174254955,-490.0,0.00016438,2]
[366286127,1750174254965,-514.48,0.00016438,2]
[366286129,1750174254975,-497.14,0.00016438,2]
[366286131,1750174254986,-514.48,0.00016438,2]
[366286133,1750174254996,-7141.55227415,0.00016438,2]
[366286135,1750174255011,-1677.62772585,0.00016438,2]
[366286137,1750174255020,-514.48,0.00016438,2]
[366286139,1750174255031,-514.48,0.00016438,2]
[366286141,1750174255040,-514.48,0.00016438,2]
[366286143,1750174255050,-889.89,0.00016438,2]
[366286145,1750174255061,-490.0,0.00016438,2]
[366286147,1750174255070,-490.0,0.00016438,2]
[366286149,1750174255080,-514.48,0.00016438,2]
[366286151,1750174255090,-514.48,0.00016438,2]
[366286153,1750174255100,-514.48,0.00016438,2]
[366286156,1750174255111,-490.0,0.00016438,2]
[366286157,1750174255120,-514.48,0.00016438,2]
[366286159,1750174255130,-514.48,0.00016438,2]
[366286161,1750174255141,-514.48,0.00016438,2]
[366286163,1750174255151,-514.66888846,0.00016438,2]
[366286165,1750174255160,-391.54576834,0.00016438,2]
[366286167,1750174255171,-1378.75,0.00016438,2]
[366286169,1750174255184,-490.0,0.00016438,2]
[366286172,1750174255194,-490.0,0.00016438,2]
[366286173,1750174255204,-490.0,0.00016438,2]
[366286176,1750174255214,-987.45,0.00016438,2]
[366286177,1750174255224,-490.0,0.00016438,2]
[366286180,1750174255234,-490.0,0.00016438,2]
[366286182,1750174255244,-2175.06,0.00016438,2]
[366286184,1750174255254,-2113.58,0.00016438,2]
[366286186,1750174255264,-490.0,0.00016438,2]
[366286187,1750174255274,-1746.24749662,0.00016438,2]
[366286190,1750174255288,-521.65,0.00016438,2]
[366286192,1750174255300,-870.33025355,0.00016438,2]
[366286194,1750174255312,-300.52386755,0.00016438,2]
[366286196,1750174255323,-539.36087932,0.00016438,2]
[366286201,1750174255356,-1306.18120312,0.00016438,2]
[366286206,1750174255400,-1209.45629984,0.00016438,2]
[366286208,1750174255410,-153.66574,0.00016438,2]
[366286210,1750174255420,-490.0,0.00016438,2]
[366286212,1750174255431,-8142.68,0.00016438,2]
[366286214,1750174255442,-826.99,0.00016438,2]
[366286216,1750174255452,-490.0,0.00016438,2]
[366286218,1750174255462,-490.0,0.00016438,2]
[366286220,1750174255472,-490.0,0.00016438,2]
[366286222,1750174255482,-497.96,0.00016438,2]
[366286223,1750174255492,-490.0,0.00016438,2]
[366286225,1750174255502,-734.83,0.00016438,2]
[366286227,1750174255512,-490.0,0.00016438,2]
[366286229,1750174255522,-153.66574,0.00016438,2]
[366286232,1750174255532,-589.93,0.00016438,2]
[366286233,1750174255543,-490.0,0.00016438,2]
[366286235,1750174255553,-648.05,0.00016438,2]
[366286237,1750174255563,-490.0,0.00016438,2]
[366286239,1750174255573,-1083.87,0.00016438,2]
[366286242,1750174255584,-490.0,0.00016438,2]
[366286244,1750174255594,-2458.88,0.00016438,2]
[366286246,1750174255604,-1140.6,0.00016438,2]
[366286248,1750174255615,-490.0,0.00016438,2]
[366286250,1750174255625,-1343.02,0.00016438,2]
[366286252,1750174255635,-490.0,0.00016438,2]
[366286254,1750174255645,-1054.19,0.00016438,2]
[366286255,1750174255657,-490.0,0.00016438,2]
[366286257,1750174255667,-260.83482288,0.00016438,2]
[366286267,1750174255937,-229.16517712,0.00016438,2]
[366286269,1750174255948,-490.0,0.00016438,2]
[366286272,1750174255959,-151.0,0.00016438,2]
[366286274,1750174255971,-490.0,0.00016438,2]
[366286275,1750174255982,-490.0,0.00016438,2]
[366286278,1750174255992,-503.36898967,0.00016438,2]
[366286280,1750174256003,-1800.5,0.00016438,2]
[366286282,1750174256014,-490.0,0.00016438,2]
[366286283,1750174256024,-490.0,0.00016438,2]
[366286285,1750174256034,-2457.97,0.00016438,2]
[366286287,1750174256044,-490.0,0.00016438,2]
[366286290,1750174256054,-958.71,0.00016438,2]
[366286291,1750174256063,-490.0,0.00016438,2]
[366286293,1750174256073,-490.0,0.00016438,2]
[366286295,1750174256083,-726.92547544,0.00016438,2]
[366286299,1750174256111,-802.0,0.00015965,2]
[366286301,1750174256122,-731.2545759,0.00016438,2]
[366286305,1750174256152,-528.75994866,0.00016438,2]
[366286307,1750174256162,-490.0,0.00016438,2]
[366286309,1750174256172,-490.0,0.00016438,2]
[366286311,1750174256186,-490.0,0.00016438,2]
[366286313,1750174256197,-490.0,0.00016438,2]
[366286315,1750174256206,-490.0,0.00016438,2]
[366286317,1750174256217,-34.96444719,0.00016438,2]
[366286328,1750174256319,-455.03555281,0.00016438,2]
[366286330,1750174256329,-490.0,0.00016438,2]
[366286332,1750174256339,-1479.45,0.00016438,2]
[366286334,1750174256349,-490.0,0.00016438,2]
[366286336,1750174256359,-490.0,0.00016438,2]
[366286338,1750174256369,-151.0,0.00016438,2]
[366286340,1750174256380,-490.0,0.00016438,2]
[366286342,1750174256390,-288.49411022,0.00016438,2]
[366286344,1750174256400,-19.50015697,0.00016438,2]
[366286347,1750174256417,-1007.86984303,0.00016438,2]
[366286349,1750174256427,-541.13,0.00016438,2]
[366286351,1750174256440,-205.00015697,0.00016438,2]
[366286353,1750174256452,-558.89350208,0.00016438,2]
[366286355,1750174256463,-523.23634095,0.00016438,2]
[366286357,1750174256474,-490.0,0.00016438,2]
[366286359,1750174256484,-906.45,0.00016438,2]
[366286361,1750174256494,-490.0,0.00016438,2]
[366286363,1750174256504,-1050.19,0.00016438,2]
[366286365,1750174256514,-490.0,0.00016438,2]
[366286367,1750174256525,-490.0,0.00016438,2]
[366286369,1750174256535,-3053.04,0.00016438,2]
[366286371,1750174256546,-1302.23,0.00016438,2]
[366286373,1750174256555,-490.0,0.00016438,2]
[366286375,1750174256566,-500.0,0.00016438,2]
[366286377,1750174256576,-1283.88,0.00016438,2]
[366286379,1750174256586,-490.0,0.00016438,2]
[366286381,1750174256596,-490.0,0.00016438,2]
[366286383,1750174256607,-150.0,0.00016438,2]
[366286385,1750174256618,-151.0,0.00016438,2]
[366286387,1750174256627,-556.74,0.00016438,2]
[366286389,1750174256637,-490.0,0.00016438,2]
[366286403,1750174256772,-490.83404968,0.00016438,2]
[366286405,1750174256782,-465.61063178,0.00016438,2]
[366286407,1750174256792,-673.14,0.00016438,2]
[366286409,1750174256802,-490.0,0.00016438,2]
[366286411,1750174256812,-490.0,0.00016438,2]
[366286413,1750174256822,-490.0,0.00016438,2]
[366286415,1750174256832,-490.0,0.00016438,2]
[366286417,1750174256842,-490.0,0.00016438,2]
[366286419,1750174256852,-1757.77,0.00016438,2]
[366286421,1750174256862,-3766.52,0.00016438,2]
[366286423,1750174256871,-490.0,0.00016438,2]
[366286425,1750174256881,-679.73,0.00016438,2]
[366286427,1750174256891,-490.0,0.00016438,2]
[366286429,1750174256901,-490.0,0.00016438,2]
[366286431,1750174256911,-490.0,0.00016438,2]
[366286433,1750174256921,-490.0,0.00016438,2]
[366286435,1750174256937,-490.0,0.00016438,2]
[366286437,1750174256947,-1086.42,0.00016438,2]
[366286439,1750174256958,-490.84204661,0.00016438,2]
[366286441,1750174256970,-490.0,0.00016438,2]
[366286443,1750174256981,-490.0,0.00016438,2]
[366286444,1750174256992,-490.0,0.00016438,2]
[366286446,1750174257002,-490.0,0.00016438,2]
[366286448,1750174257016,-3895.46,0.00016438,2]
[366286450,1750174257026,-813.63,0.00016438,2]
[366286452,1750174257036,-530.96,0.00016438,2]
[366286454,1750174257046,-1400.69,0.00016438,2]
[366286456,1750174257056,-490.0,0.00016438,2]
[366286458,1750174257067,-2274.04,0.00016438,2]
[366286460,1750174257077,-14883.18,0.00016438,2]
[366286462,1750174257087,-490.0,0.00016438,2]
[366286464,1750174257098,-3786.307314,0.00016438,2]
[366286466,1750174257108,-490.0,0.00016438,2]
[366286468,1750174257118,-1139.02,0.00016438,2]
[366286470,1750174257128,-490.0,0.00016438,2]
[366286472,1750174257138,-466.53040406,0.00016438,2]
[366286475,1750174257158,-3786.307314,0.00016438,2]
[366286477,1750174257172,-501.38,0.00016438,2]
[366286479,1750174257185,-3135.66,0.00016438,2]
[366286481,1750174257197,-3324.48,0.00016438,2]
[366286483,1750174257207,-490.0,0.00016438,2]
[366286485,1750174257217,-611.62,0.00016438,2]
[366286487,1750174257229,-490.0,0.00016438,2]
[366286489,1750174257239,-1128.45,0.00016438,2]
[366286491,1750174257249,-1268.32,0.00016438,2]
[366286493,1750174257259,-490.0,0.00016438,2]
[366286495,1750174257270,-632.68687383,0.00016438,2]
[366286497,1750174257280,-6270.22,0.00016438,2]
[366286499,1750174257290,-490.0,0.00016438,2]
[366286501,1750174257301,-720.17,0.00016438,2]
[366286503,1750174257311,-197.98467032,0.00016438,2]
[366286505,1750174257321,-490.0,0.00016438,2]
[366286507,1750174257331,-424.4386509,0.00016438,2]
[366286509,1750174257341,-492.89609333,0.00016438,2]
[366286511,1750174257351,-981.97,0.00016438,2]
[366286513,1750174257361,-490.0,0.00016438,2]
[366286515,1750174257371,-490.0,0.00016438,2]
[366286517,1750174257381,-490.0,0.00016438,2]
[366286519,1750174257392,-490.0,0.00016438,2]
[366286522,1750174257402,-490.0,0.00016438,2]
[366286523,1750174257412,-657.06,0.00016438,2]
[366286526,1750174257423,-1057.77,0.00016438,2]
[366286528,1750174257437,-472.07201631,0.00016438,2]
[366286530,1750174257446,-1165.75,0.00016438,2]
[366286532,1750174257456,-490.0,0.00016438,2]
[366286534,1750174257466,-537.24747827,0.00016438,2]
[366286536,1750174257476,-490.0,0.00016438,2]
[366286538,1750174257486,-490.0,0.00016438,2]
[366286540,1750174257496,-490.0,0.00016438,2]
[366286542,1750174257506,-2789.88,0.00016438,2]
[366286544,1750174257516,-490.0,0.00016438,2]
[366286546,1750174257526,-3248.23,0.00016438,2]
[366286547,1750174257536,-3248.23,0.00016438,2]
[366286549,1750174257546,-3248.23,0.00016438,2]
[366286551,1750174257555,-3248.23,0.00016438,2]
[366286554,1750174257566,-3248.23,0.00016438,2]
[366286556,1750174257576,-734.54,0.00016438,2]
[366286558,1750174257587,-490.0,0.00016438,2]
[366286560,1750174257596,-490.0,0.00016438,2]
[366286562,1750174257611,-3248.23,0.00016438,2]
[366286564,1750174257622,-3248.23,0.00016438,2]
[366286566,1750174257634,-3248.23,0.00016438,2]
[366286568,1750174257645,-16614.53,0.00016438,2]
[366286570,1750174257655,-490.0,0.00016438,2]
[366286572,1750174257666,-3248.23,0.00016438,2]
[366286574,1750174257677,-5011.43,0.00016438,2]
[366286576,1750174257691,-3248.23,0.00016438,2]
[366286578,1750174257702,-151.0,0.00016438,2]
[366286580,1750174257712,-3248.23,0.00016438,2]
[366286582,1750174257722,-3248.23,0.00016438,2]
[366286584,1750174257732,-490.0,0.00016438,2]
[366286586,1750174257742,-3248.23,0.00016438,2]
[366286589,1750174257752,-3864.67,0.00016438,2]
[366286591,1750174257762,-3248.23,0.00016438,2]
[366286592,1750174257772,-3248.23,0.00016438,2]
[366286595,1750174257783,-3248.23,0.00016438,2]
[366286597,1750174257792,-805.0,0.00016438,2]
[366286599,1750174257803,-490.0,0.00016438,2]
[366286601,1750174257813,-490.0,0.00016438,2]
[366286603,1750174257823,-490.0,0.00016438,2]
[366286605,1750174257833,-2781.73,0.00016438,2]
[366286607,1750174257843,-1586.73,0.00016438,2]
[366286609,1750174257853,-495.56430313,0.00016438,2]
[366286611,1750174257863,-3248.23,0.00016438,2]
[366286613,1750174257873,-3248.23,0.00016438,2]
[366286615,1750174257883,-490.0,0.00016438,2]
[366286617,1750174257893,-3248.23,0.00016438,2]
[366286619,1750174257902,-1789.06,0.00016438,2]
[366286621,1750174257912,-3248.23,0.00016438,2]
[366286623,1750174257923,-3248.23,0.00016438,2]
[366286625,1750174257938,-3248.23,0.00016438,2]
[366286627,1750174257948,-490.0,0.00016438,2]
[366286629,1750174257962,-490.0,0.00016438,2]
[366286631,1750174257972,-3248.23,0.00016438,2]
[366286633,1750174257982,-3248.23699819,0.00016438,2]
[366286635,1750174257992,-490.0,0.00016438,2]
[366286637,1750174258002,-151.0,0.00016438,2]
[366286639,1750174258012,-490.0,0.00016438,2]
[366286641,1750174258024,-2772.37,0.00016438,2]
[366286643,1750174258035,-490.0,0.00016438,2]
[366286645,1750174258045,-490.0,0.00016438,2]
[366286647,1750174258062,-805.74,0.00016438,2]
[366286649,1750174258073,-1411.32,0.00016438,2]
[366286651,1750174258084,-490.0,0.00016438,2]
[366286653,1750174258094,-490.0,0.00016438,2]
[366286655,1750174258105,-490.0,0.00016438,2]
[366286657,1750174258115,-490.0,0.00016438,2]
[366286659,1750174258125,-151.0,0.00016438,2]
[366286661,1750174258135,-490.92474936,0.00016438,2]
[366286663,1750174258146,-13553.0,0.00016438,2]
[366286665,1750174258156,-490.0,0.00016438,2]
[366286667,1750174258166,-490.0,0.00016438,2]
[366286670,1750174258177,-804.49,0.00016438,2]
[366286672,1750174258190,-490.0,0.00016438,2]
[366286674,1750174258200,-986.69,0.00016438,2]
[366286676,1750174258210,-490.0,0.00016438,2]
[366286678,1750174258221,-462.25862982,0.00016438,2]
[366286680,1750174258232,-151.0,0.00016438,2]
[366286682,1750174258243,-2349.87,0.00016438,2]
[366286684,1750174258254,-490.0,0.00016438,2]
[366286686,1750174258265,-1849.98,0.00016438,2]
[366286688,1750174258275,-490.0,0.00016438,2]
[366286690,1750174258285,-216.42249772,0.00016438,2]
[366286692,1750174258296,-151.0,0.00016438,2]
[366286694,1750174258306,-599.86,0.00016438,2]
[366286696,1750174258316,-490.0,0.00016438,2]
[366286698,1750174258327,-660.65,0.00016438,2]
[366286700,1750174258337,-490.0,0.00016438,2]
[366286702,1750174258346,-490.0,0.00016438,2]
[366286704,1750174258356,-1107.94,0.00016438,2]
[366286705,1750174258366,-718.45,0.00016438,2]
[366286706,1750174258376,-22739.22,0.00016438,2]
[366286707,1750174258387,-490.0,0.00016438,2]
[366286708,1750174258397,-2047.2,0.00016438,2]
[366286709,1750174258407,-490.01,0.00016438,2]
[366286710,1750174258417,-490.0,0.00016438,2]
[366286711,1750174258426,-490.0,0.00016438,2]
[366286712,1750174258439,-490.0,0.00016438,2]
[366286713,1750174258449,-151.0,0.00016438,2]
[366286714,1750174258459,-1076.46,0.00016438,2]
[366286715,1750174258469,-1729.02,0.00016438,2]
[366286716,1750174258478,-538.95,0.00016438,2]
[366286717,1750174258488,-284.60308,0.00016438,2]
[366286718,1750174258498,-5557.62,0.00016438,2]
[366286719,1750174258514,-1097.72,0.00016438,2]
[366286721,1750174258524,-1235.19,0.00016438,2]
[366286722,1750174258534,-490.0,0.00016438,2]
[366286724,1750174258544,-2628.166101,0.00016438,2]
[366286726,1750174258555,-284.60308,0.00016438,2]
[366286728,1750174258565,-490.0,0.00016438,2]
[366286730,1750174258575,-566.57,0.00016438,2]
[366286732,1750174258585,-519.95,0.00016438,2]
[366286734,1750174258596,-490.0,0.00016438,2]
[366286736,1750174258606,-843.34,0.00016438,2]
[366286739,1750174258618,-1098.7,0.00016438,2]
[366286741,1750174258628,-2628.166101,0.00016438,2]
[366286742,1750174258639,-535.31,0.00016438,2]
[366286744,1750174258650,-151.0,0.00016438,2]
[366286746,1750174258660,-533.58470695,0.00016438,2]
[366286748,1750174258670,-1575.94,0.00016438,2]
[366286751,1750174258683,-1221.44,0.00016438,2]
[366286753,1750174258694,-490.0,0.00016438,2]
[366286755,1750174258704,-1283.85,0.00016438,2]
[366286757,1750174258714,-4688.15,0.00016438,2]
[366286759,1750174258726,-151.0,0.00016438,2]
[366286761,1750174258736,-1505.42,0.00016438,2]
[366286763,1750174258746,-241.07128088,0.00016438,2]
[366286765,1750174258757,-151.0,0.00016438,2]
[366286767,1750174258766,-537.11,0.00016438,2]
[366286769,1750174258776,-490.0,0.00016438,2]
[366286771,1750174258786,-3164.83,0.00016438,2]
[366286773,1750174258796,-490.0,0.00016438,2]
[366286775,1750174258806,-490.0,0.00016438,2]
[366286777,1750174258817,-1362.72,0.00016438,2]
[366286779,1750174258827,-611.8,0.00016438,2]
[366286781,1750174258838,-490.0,0.00016438,2]
[366286783,1750174258849,-490.0,0.00016438,2]
[366286785,1750174258859,-490.0,0.00016438,2]
[366286787,1750174258869,-490.0,0.00016438,2]
[366286789,1750174258880,-1962.12,0.00016438,2]
[366286791,1750174258890,-2289.69,0.00016438,2]
[366286793,1750174258900,-490.0,0.00016438,2]
[366286795,1750174258910,-490.0,0.00016438,2]
[366286797,1750174258920,-490.0,0.00016438,2]
[366286799,1750174258932,-491.75563242,0.00016438,2]
[366286801,1750174258945,-490.0,0.00016438,2]
[366286803,1750174258955,-490.0,0.00016438,2]
[366286806,1750174258976,-860.18,0.00016438,2]
[366286808,1750174258987,-490.0,0.00016438,2]
[366286810,1750174258998,-490.0,0.00016438,2]
[366286813,1750174259008,-490.0,0.00016438,2]
[366286815,1750174259019,-490.0,0.00016438,2]
[366286817,1750174259029,-490.0,0.00016438,2]
[366286819,1750174259040,-153.817576,0.00016438,2]
[366286821,1750174259051,-490.0,0.00016438,2]
[366286823,1750174259061,-695.75,0.00016438,2]
[366286825,1750174259072,-490.0,0.00016438,2]
[366286827,1750174259082,-976.31,0.00016438,2]
[366286829,1750174259093,-490.0,0.00016438,2]
[366286831,1750174259102,-500.0,0.00016438,2]
[366286833,1750174259113,-5988.75,0.00016438,2]
[366286835,1750174259123,-490.0,0.00016438,2]
[366286837,1750174259133,-490.0,0.00016438,2]
[366286839,1750174259144,-490.0,0.00016438,2]
[366286841,1750174259155,-2571.04,0.00016438,2]
[366286843,1750174259165,-220.19507408,0.00016438,2]
[366286845,1750174259175,-848.0,0.00016438,2]
[366286847,1750174259186,-490.0,0.00016438,2]
[366286849,1750174259196,-1109.71,0.00016438,2]
[366286851,1750174259206,-825.74,0.00016438,2]
[366286853,1750174259217,-490.0,0.00016438,2]
[366286855,1750174259227,-1694.42,0.00016438,2]
[366286857,1750174259237,-490.0,0.00016438,2]
[366286859,1750174259248,-1740.31,0.00016438,2]
[366286862,1750174259258,-1135.45,0.00016438,2]
[366286863,1750174259267,-891.21,0.00016438,2]
[366286866,1750174259278,-1001.59,0.00016438,2]
[366286868,1750174259288,-490.0,0.00016438,2]
[366286870,1750174259298,-490.0,0.00016438,2]
[366286872,1750174259309,-1471.24,0.00016438,2]
[366286874,1750174259319,-574.14,0.00016438,2]
[366286876,1750174259330,-650.76,0.00016438,2]
[366286878,1750174259342,-1553.56,0.00016438,2]
[366286880,1750174259352,-5689.71,0.00016438,2]
[366286882,1750174259363,-490.0,0.00016438,2]
[366286884,1750174259373,-151.0,0.00016438,2]
[366286886,1750174259383,-557.58,0.00016438,2]
[366286888,1750174259394,-511.84,0.00016438,2]
[366286891,1750174259409,-490.0,0.00016438,2]
[366286893,1750174259419,-1297.18,0.00016438,2]
[366286895,1750174259429,-490.0,0.00016438,2]
[366286897,1750174259441,-512.89,0.00016438,2]
[366286899,1750174259451,-383.33612542,0.00016438,2]
[366286904,1750174259491,-228.49387458,0.00016438,2]
[366286906,1750174259502,-490.0,0.00016438,2]
[366286908,1750174259512,-1787.00912542,0.00016438,2]
[366286910,1750174259524,-1263.10000002,0.00016438,2]
[366286922,1750174259634,-2283.69087456,0.00016438,2]
[366286925,1750174259644,-755.95,0.00016438,2]
[366286927,1750174259654,-730.23,0.00016438,2]
[366286929,1750174259665,-490.0,0.00016438,2]
[366286931,1750174259675,-313.19813839,0.00016438,2]
[366286933,1750174259686,-490.0,0.00016438,2]
[366286935,1750174259696,-2741.33,0.00016438,2]
[366286937,1750174259706,-490.0,0.00016438,2]
[366286939,1750174259715,-1610.01,0.00016438,2]
[366286941,1750174259727,-490.0,0.00016438,2]
[366286943,1750174259737,-623.44,0.00016438,2]
[366286945,1750174259748,-927.85,0.00016438,2]
[366286947,1750174259758,-490.0,0.00016438,2]
[366286949,1750174259768,-490.0,0.00016438,2]
[366286951,1750174259778,-785.03,0.00016438,2]
[366286953,1750174259788,-490.0,0.00016438,2]
[366286955,1750174259798,-490.0,0.00016438,2]
[366286957,1750174259808,-490.5450748,0.00016438,2]
[366286959,1750174259819,-490.0,0.00016438,2]
[366286961,1750174259829,-490.0,0.00016438,2]
[366286963,1750174259839,-490.0,0.00016438,2]
[366286966,1750174259854,-490.0,0.00016438,2]
[366286968,1750174259865,-490.0,0.00016438,2]
[366286970,1750174259875,-2486.1,0.00016438,2]
[366286972,1750174259886,-492.27277122,0.00016438,2]